fUST/lending_fUST_20240804
["ID","MTS","AMOUNT","RATE_DAILY","PERIOD"]
[334116184,1722784245848,-500.0,0.00013698,2]
[334116186,1722784245858,-500.0,0.00013698,2]
[334116188,1722784245868,-1059.76,0.00013698,2]
[334116190,1722784245881,-954.87,0.00013698,2]
[334116192,1722784245890,-1452.11,0.00013698,2]
[334116194,1722784245901,-500.0,0.00013698,2]
[334116196,1722784245912,-39.91778655,0.00013698,2]
[334116198,1722784245925,-460.08221345,0.00013698,2]
[334116200,1722784245935,-109.91778655,0.00013698,2]
[334116467,1722784248435,-390.08221345,0.00013698,2]
[334116469,1722784248450,-500.0,0.00013698,2]
[334116471,1722784248459,-503.39811253,0.00013698,2]
[334116473,1722784248470,-500.0,0.00013698,2]
[334116475,1722784248480,-500.0,0.00013698,2]
[334116477,1722784248490,-501.04584901,0.00013698,2]
[334116479,1722784248499,-434.01611273,0.00013698,2]
[334116482,1722784248515,-65.98388727,0.00013698,2]
[334116484,1722784248525,-500.0,0.00013698,2]
[334116486,1722784248536,-72.62611273,0.00013698,2]
[334116488,1722784248548,-236.63773094,0.00013698,2]
[334116490,1722784248559,-174.47406825,0.00013698,2]
[334116919,1722784255083,156.55,0.00010959,2]
[334119374,1722784332425,1879.60536755,0.00010959,2]
[334119379,1722785008737,-200.0,0.00027102,120]
[334119380,1722785008759,-210.09102175,0.000273,120]
[334119381,1722785009078,-253.07071361,0.00027397,120]
[334119382,1722785009240,-200.0,0.00027397,120]
[334119383,1722785009552,-3019.13787339,0.00027397,120]
[334119384,1722785009577,-200.0,0.00028035,120]
[334119385,1722785009601,-164.681875,0.00028493,120]
[334119386,1722785009624,-253.07071361,0.000288,120]
[334119387,1722785009649,-279.83473151,0.00029,120]
[334119388,1722785035009,512.79,0.00028,120]
[334119389,1722785063523,500.0,0.00029,120]
[334119390,1722785248147,-166.00306024,0.00013597,2]
[334119391,1722785252179,-814.78963687,0.00013597,2]
[334119392,1722785268608,2604.15644,0.00027397,120]
[334119447,1722785435541,-312.80804366,0.00013523,2]
[334119473,1722785438512,-55.07885682,0.00013523,2]
[334119474,1722785438522,-6355.37449435,0.00013527,2]
[334119475,1722785438530,-300.0,0.00013597,2]
[334119476,1722785438540,-3687.30528461,0.00013598,2]
[334119477,1722785438550,-156.29006551,0.00013598,2]
[334119478,1722785438559,-2426.63267384,0.00013667,2]
[334119553,1722785443665,-512.17027928,0.00013667,2]
[334119554,1722785443840,-748.50233146,0.00013667,2]
[334119557,1722785443852,-200.0,0.00013673,2]
[334119559,1722785443862,-628.77289467,0.00013688,2]
[334119561,1722785443876,-6320.0,0.00013688,2]
[334119563,1722785443887,-6325.0,0.00013688,2]
[334119565,1722785443899,-29816.84121053,0.00013688,2]
[334119567,1722785443909,-3724.68,0.00013697,2]
[334119568,1722785443918,-3724.68,0.00013697,2]
[334119569,1722785443927,-4143.94866873,0.00013698,5]
[334119570,1722785443936,-500.0,0.00013698,2]
[334119571,1722785443947,-500.0,0.00013698,2]
[334119572,1722785443956,-500.0,0.00013698,2]
[334119573,1722785443965,-504.68171436,0.00013698,2]
[334119574,1722785443974,-500.0,0.00013698,2]
[334119575,1722785443983,-500.0,0.00013698,2]
[334119577,1722785443992,-500.0,0.00013698,2]
[334119579,1722785444001,-500.0,0.00013698,2]
[334119580,1722785444011,-508.46624303,0.00013698,2]
[334119582,1722785444020,-500.0,0.00013698,2]
[334119584,1722785444029,-500.0,0.00013698,2]
[334119586,1722785444038,-500.0,0.00013698,2]
[334119587,1722785444047,-501.81241984,0.00013698,2]
[334119588,1722785444057,-500.0,0.00013698,2]
[334119589,1722785444066,-500.0,0.00013698,2]
[334119591,1722785444078,-500.0,0.00013698,2]
[334119592,1722785444087,-201.0,0.00013698,2]
[334119593,1722785444096,-562.58670053,0.00013698,2]
[334119595,1722785444105,-578.68,0.00013698,2]
[334119597,1722785444115,-500.0,0.00013698,2]
[334119599,1722785444125,-500.0,0.00013698,2]
[334119601,1722785444134,-500.0,0.00013698,2]
[334119602,1722785444143,-500.0,0.00013698,2]
[334119603,1722785444152,-500.0,0.00013698,2]
[334119604,1722785444161,-500.0,0.00013698,2]
[334119605,1722785444170,-500.0,0.00013698,2]
[334119606,1722785444179,-500.0,0.00013698,2]
[334119607,1722785444189,-500.0,0.00013698,2]
[334119608,1722785444198,-500.0,0.00013698,2]
[334119609,1722785444208,-500.0,0.00013698,2]
[334119610,1722785444216,-500.0,0.00013698,2]
[334119611,1722785444226,-500.0,0.00013698,2]
[334119613,1722785444235,-256.24343153,0.00013698,2]
[334119616,1722785444254,-500.0,0.00013698,2]
[334119618,1722785444264,-500.0,0.00013698,2]
[334119619,1722785444275,-500.0,0.00013698,2]
[334119621,1722785444284,-500.0,0.00013698,2]
[334119622,1722785444293,-500.0,0.00013698,2]
[334119623,1722785444303,-500.0,0.00013698,2]
[334119624,1722785444314,-500.0,0.00013698,2]
[334119626,1722785444326,-500.0,0.00013698,2]
[334119628,1722785444336,-528.84903663,0.00013698,2]
[334119629,1722785444345,-500.0,0.00013698,2]
[334119631,1722785444355,-500.0,0.00013698,2]
[334119633,1722785444364,-500.0,0.00013698,2]
[334119635,1722785444374,-500.0,0.00013698,2]
[334119636,1722785444385,-500.0,0.00013698,2]
[334119637,1722785444395,-500.0,0.00013698,2]
[334119638,1722785444404,-500.0,0.00013698,2]
[334119639,1722785444414,-500.0,0.00013698,2]
[334119640,1722785444424,-500.0,0.00013698,2]
[334119641,1722785444435,-500.0,0.00013698,2]
[334119642,1722785444446,-500.0,0.00013698,2]
[334119643,1722785444457,-500.0,0.00013698,2]
[334119644,1722785444469,-526.43611433,0.00013698,2]
[334119645,1722785444480,-500.0,0.00013698,2]
[334119646,1722785444492,-500.0,0.00013698,2]
[334119647,1722785444504,-500.0,0.00013698,2]
[334119648,1722785444514,-500.0,0.00013698,2]
[334119649,1722785444524,-500.0,0.00013698,2]
[334119650,1722785444534,-500.0,0.00013698,2]
[334119651,1722785444546,-471.66603527,0.00013698,2]
[334119652,1722785444557,-500.0,0.00013698,2]
[334119653,1722785444569,-500.0,0.00013698,2]
[334119654,1722785444581,-500.0,0.00013698,2]
[334119655,1722785444590,-500.0,0.00013698,2]
[334119656,1722785444599,-500.0,0.00013698,2]
[334119657,1722785444611,-568.85430094,0.00013698,2]
[334119658,1722785444622,-500.0,0.00013698,2]
[334119659,1722785444632,-500.0,0.00013698,2]
[334119660,1722785444643,-500.0,0.00013698,2]
[334119661,1722785444653,-500.0,0.00013698,2]
[334119662,1722785444663,-500.0,0.00013698,2]
[334119663,1722785444675,-501.12752463,0.00013698,2]
[334119664,1722785444685,-500.0,0.00013698,2]
[334119665,1722785444695,-500.0,0.00013698,2]
[334119666,1722785444707,-500.0,0.00013698,2]
[334119667,1722785444716,-500.0,0.00013698,2]
[334119668,1722785444726,-579.62,0.00013698,2]
[334119669,1722785444736,-500.0,0.00013698,2]
[334119670,1722785444746,-500.0,0.00013698,2]
[334119671,1722785444756,-500.0,0.00013698,2]
[334119672,1722785444766,-500.0,0.00013698,2]
[334119673,1722785444776,-500.0,0.00013698,2]
[334119674,1722785444786,-520.41225916,0.00013698,2]
[334119675,1722785444795,-423.92609891,0.00013698,2]
[334119676,1722785444805,-500.0,0.00013698,2]
[334119677,1722785444814,-500.0,0.00013698,2]
[334119678,1722785444827,-500.0,0.00013698,2]
[334119679,1722785444837,-500.0,0.00013698,2]
[334119680,1722785444846,-500.0,0.00013698,2]
[334119681,1722785444857,-500.0,0.00013698,2]
[334119682,1722785444873,-500.0,0.00013698,2]
[334119683,1722785444883,-500.0,0.00013698,2]
[334119684,1722785444894,-167.426611,0.00013698,2]
[334119685,1722785444904,-500.0,0.00013698,2]
[334119686,1722785444915,-264.86606131,0.00013698,2]
[334119687,1722785444924,-476.32400607,0.00013698,2]
[334119688,1722785444934,-500.0,0.00013698,2]
[334119689,1722785444944,-291.40659656,0.00013698,2]
[334119690,1722785444956,-500.0,0.00013698,2]
[334119691,1722785444967,-500.0,0.00013698,2]
[334119692,1722785444977,-500.0,0.00013698,2]
[334119693,1722785444987,-635.95323873,0.00013698,2]
[334119694,1722785444997,-500.0,0.00013698,2]
[334119695,1722785445009,-500.0,0.00013698,2]
[334119696,1722785445018,-500.0,0.00013698,2]
[334119697,1722785445028,-500.0,0.00013698,2]
[334119698,1722785445037,-500.0,0.00013698,2]
[334119699,1722785445047,-500.0,0.00013698,2]
[334119700,1722785445056,-500.0,0.00013698,2]
[334119701,1722785445066,-500.0,0.00013698,2]
[334119702,1722785445080,-500.0,0.00013698,2]
[334119703,1722785445090,-1218.78,0.00013698,2]
[334119704,1722785445104,-500.0,0.00013698,2]
[334119705,1722785445114,-500.0,0.00013698,2]
[334119706,1722785445124,-500.0,0.00013698,2]
[334119707,1722785445134,-500.0,0.00013698,2]
[334119708,1722785445144,-500.0,0.00013698,2]
[334119709,1722785445154,-500.0,0.00013698,2]
[334119710,1722785445164,-500.0,0.00013698,2]
[334119711,1722785445173,-500.0,0.00013698,2]
[334119712,1722785445184,-500.0,0.00013698,2]
[334119713,1722785445194,-500.0,0.00013698,2]
[334119714,1722785445203,-500.0,0.00013698,2]
[334119715,1722785445213,-500.0,0.00013698,2]
[334119716,1722785445224,-500.0,0.00013698,2]
[334119717,1722785445235,-500.0,0.00013698,2]
[334119718,1722785445247,-500.0,0.00013698,2]
[334119719,1722785445258,-500.0,0.00013698,2]
[334119720,1722785445410,-500.0,0.00013698,2]
[334119721,1722785445421,-3246.86,0.00013698,2]
[334119722,1722785445431,-500.0,0.00013698,2]
[334119723,1722785445442,-500.0,0.00013698,2]
[334119724,1722785445452,-500.0,0.00013698,2]
[334119725,1722785445462,-504.39572741,0.00013698,2]
[334119726,1722785445474,-500.0,0.00013698,2]
[334119727,1722785445484,-500.0,0.00013698,2]
[334119728,1722785445496,-500.0,0.00013698,2]
[334119729,1722785445506,-1414.48,0.00013698,2]
[334119730,1722785445517,-216.21927671,0.00013698,2]
[334119731,1722785445527,-500.0,0.00013698,2]
[334119732,1722785445538,-500.0,0.00013698,2]
[334119733,1722785445548,-534.79823965,0.00013698,2]
[334119734,1722785445558,-500.0,0.00013698,2]
[334119735,1722785445570,-847.63,0.00013698,2]
[334119736,1722785445588,-556.01,0.00013698,2]
[334119737,1722785445599,-981.62,0.00013698,2]
[334119738,1722785445609,-500.0,0.00013698,2]
[334119739,1722785445618,-500.0,0.00013698,2]
[334119740,1722785445628,-586.48,0.00013698,2]
[334119743,1722785445638,-963.79,0.00013698,2]
[334119745,1722785445649,-500.0,0.00013698,2]
[334119748,1722785445659,-153.94626508,0.00013698,2]
[334119750,1722785445668,-676.31,0.00013698,2]
[334119753,1722785445678,-500.0,0.00013698,2]
[334119757,1722785445688,-500.0,0.00013698,2]
[334119759,1722785445697,-500.0,0.00013698,2]
[334119761,1722785445709,-500.0,0.00013698,2]
[334119763,1722785445719,-500.0,0.00013698,2]
[334119764,1722785445729,-500.0,0.00013698,2]
[334119766,1722785445740,-500.0,0.00013698,2]
[334119767,1722785445752,-500.0,0.00013698,2]
[334119768,1722785445763,-500.0,0.00013698,2]
[334119769,1722785445774,-2459.1,0.00013698,2]
[334119770,1722785445785,-500.0,0.00013698,2]
[334119771,1722785445794,-500.0,0.00013698,2]
[334119772,1722785445805,-1617.98,0.00013698,2]
[334119773,1722785445814,-1047.42,0.00013698,2]
[334119774,1722785445825,-500.0,0.00013698,2]
[334119775,1722785445840,-500.0,0.00013698,2]
[334119776,1722785445850,-500.0,0.00013698,2]
[334119777,1722785445861,-500.0,0.00013698,2]
[334119778,1722785445874,-500.0,0.00013698,2]
[334119779,1722785445894,-500.0,0.00013698,2]
[334119780,1722785445911,-500.0,0.00013698,2]
[334119781,1722785445921,-500.0,0.00013698,2]
[334119782,1722785445931,-500.0,0.00013698,2]
[334119783,1722785445940,-500.0,0.00013698,2]
[334119784,1722785445950,-500.0,0.00013698,2]
[334119785,1722785445960,-500.0,0.00013698,2]
[334119786,1722785445969,-500.0,0.00013698,2]
[334119787,1722785445981,-500.0,0.00013698,2]
[334119789,1722785445991,-500.0,0.00013698,2]
[334119790,1722785446002,-779.55,0.00013698,2]
[334119791,1722785446012,-255.33502222,0.00013698,2]
[334119793,1722785446023,-1481.81,0.00013698,2]
[334119794,1722785446035,-1413.33,0.00013698,2]
[334119795,1722785446048,-500.0,0.00013698,2]
[334119796,1722785446058,-500.0,0.00013698,2]
[334119797,1722785446069,-500.0,0.00013698,2]
[334119798,1722785446087,-773.13,0.00013698,2]
[334119799,1722785446097,-500.0,0.00013698,2]
[334119800,1722785446106,-974.62,0.00013698,2]
[334119801,1722785446115,-3204.07,0.00013698,2]
[334119802,1722785446125,-673.9,0.00013698,2]
[334119803,1722785446134,-500.0,0.00013698,2]
[334119804,1722785446143,-500.0,0.00013698,2]
[334119805,1722785446154,-500.0,0.00013698,2]
[334119806,1722785446164,-500.0,0.00013698,2]
[334119809,1722785446173,-500.0,0.00013698,2]
[334119813,1722785446183,-500.0,0.00013698,2]
[334119816,1722785446192,-500.0,0.00013698,2]
[334119818,1722785446201,-500.0,0.00013698,2]
[334119822,1722785446211,-2821.71,0.00013698,2]
[334119826,1722785446220,-500.0,0.00013698,2]
[334119830,1722785446230,-500.0,0.00013698,2]
[334119833,1722785446240,-500.0,0.00013698,2]
[334119836,1722785446250,-500.0,0.00013698,2]
[334119838,1722785446260,-604.01,0.00013698,2]
[334119840,1722785446270,-500.0,0.00013698,2]
[334119842,1722785446280,-500.0,0.00013698,2]
[334119844,1722785446290,-207.99367531,0.00013698,2]
[334119845,1722785446300,-500.0,0.00013698,2]
[334119846,1722785446309,-500.0,0.00013698,2]
[334119848,1722785446318,-500.0,0.00013698,2]
[334119851,1722785446331,-500.0,0.00013698,2]
[334119853,1722785446340,-500.0,0.00013698,2]
[334119855,1722785446350,-768.91,0.00013698,2]
[334119857,1722785446359,-500.0,0.00013698,2]
[334119859,1722785446369,-500.0,0.00013698,2]
[334119861,1722785446379,-500.0,0.00013698,2]
[334119862,1722785446389,-620.75,0.00013698,2]
[334119864,1722785446398,-500.0,0.00013698,2]
[334119866,1722785446407,-500.0,0.00013698,2]
[334119868,1722785446417,-500.0,0.00013698,2]
[334119870,1722785446428,-500.0,0.00013698,2]
[334119872,1722785446438,-500.0,0.00013698,2]
[334119875,1722785446456,-337.59,0.00013698,2]
[334119877,1722785446468,-500.0,0.00013698,2]
[334119879,1722785446478,-500.0,0.00013698,2]
[334119881,1722785446489,-500.0,0.00013698,2]
[334119883,1722785446499,-3000.0,0.00013699,2]
[334119885,1722785446511,-356.863601,0.00013699,2]
[334119887,1722785446521,-150.112233,0.000137,2]
[334119889,1722785446531,-150.112233,0.000137,2]
[334119891,1722785446541,-3687.30528458,0.00013735,2]
[334119893,1722785446553,-301.00956209,0.000138,2]
[334119895,1722785446563,-3687.30528458,0.00013804,2]
[334119897,1722785446573,-151.0,0.00013824,2]
[334119899,1722785446586,-151.0,0.00013824,2]
[334119901,1722785446596,-151.0,0.00013824,2]
[334119903,1722785446606,-151.0,0.00013824,2]
[334119905,1722785446617,-266.002243,0.00013824,2]
[334119906,1722785446626,-266.002243,0.00013824,2]
[334119908,1722785446637,-3687.30528458,0.00013872,2]
[334119909,1722785446646,-2000.0,0.00013872,2]
[334119910,1722785446656,-433.61549201,0.00013872,2]
[334119911,1722785446666,-21545.3070526,0.0001388,2]
[334119913,1722785446676,-151.0,0.0001389,2]
[334119915,1722785446688,-151.0,0.0001389,2]
[334119917,1722785446699,-151.0,0.0001389,2]
[334119918,1722785446708,-151.0,0.0001389,2]
[334119920,1722785446719,-151.0,0.0001389,2]
[334119922,1722785446731,-151.0,0.0001389,2]
[334119924,1722785446742,-151.0,0.0001389,2]
[334119926,1722785446753,-212.871322,0.0001389,2]
[334119927,1722785446764,-212.871322,0.0001389,2]
[334119928,1722785446774,-151.0,0.0001389,2]
[334119929,1722785446785,-151.0,0.0001389,2]
[334119930,1722785446795,-151.0,0.0001389,2]
[334119931,1722785446805,-199.801152,0.0001389,2]
[334119932,1722785446816,-199.801152,0.0001389,2]
[334119933,1722785446828,-184.733647,0.0001389,2]
[334119934,1722785446839,-151.0,0.0001389,2]
[334119935,1722785446850,-184.733647,0.0001389,2]
[334119936,1722785446860,-151.0,0.0001389,2]
[334119937,1722785446873,-151.0,0.0001389,2]
[334119938,1722785446887,-151.0,0.0001389,2]
[334119939,1722785446899,-151.0,0.0001389,2]
[334119940,1722785446911,-322.324888,0.0001389,2]
[334119941,1722785446923,-322.324888,0.0001389,2]
[334119942,1722785446934,-151.0,0.0001389,2]
[334119943,1722785446946,-151.0,0.0001389,2]
[334119944,1722785446957,-168.704533,0.0001389,2]
[334119945,1722785446968,-168.704533,0.0001389,2]
[334119946,1722785446978,-306.8795636,0.000139,2]
[334119947,1722785446988,-153.0,0.000139,2]
[334119948,1722785447000,-151.0,0.00013942,2]
[334119949,1722785447009,-151.0,0.00013942,2]
[334119950,1722785447019,-266.002243,0.00013942,2]
[334119951,1722785447029,-266.002243,0.00013942,2]
[334119952,1722785447039,-21545.3070526,0.00013942,2]
[334119953,1722785447050,-500.0,0.00013949,2]
[334119954,1722785447060,-425.174959,0.0001395,2]
[334119955,1722785447070,-425.174959,0.0001395,2]
[334119956,1722785447082,-151.0,0.00013952,2]
[334119957,1722785447093,-151.0,0.00013952,2]
[334119958,1722785447103,-21545.3070526,0.00013952,2]
[334119959,1722785447113,-151.403921,0.00013959,2]
[334119960,1722785447124,-151.0,0.00013959,2]
[334119961,1722785447134,-151.0,0.00013961,2]
[334119962,1722785447144,-151.0,0.00013961,2]
[334119963,1722785447154,-500.0,0.00013961,2]
[334119964,1722785447163,-390.51700668,0.00013961,2]
[334119965,1722785447173,-151.0,0.00013962,2]
[334119966,1722785447183,-425.174959,0.00013962,2]
[334119967,1722785447194,-425.174959,0.00013962,2]
[334119968,1722785447205,-151.0,0.00013962,2]
[334119969,1722785447218,-151.0,0.00013962,2]
[334119970,1722785447229,-151.0,0.00013962,2]
[334119971,1722785447241,-151.0,0.00013962,2]
[334119972,1722785447252,-212.871322,0.00013962,2]
[334119973,1722785447262,-212.871322,0.00013962,2]
[334119974,1722785447272,-151.0,0.00013962,2]
[334119975,1722785447282,-151.0,0.00013962,2]
[334119976,1722785447292,-151.0,0.00013962,2]
[334119977,1722785447302,-199.801152,0.00013962,2]
[334119978,1722785447315,-199.801152,0.00013962,2]
[334119979,1722785447325,-184.733647,0.00013962,2]
[334119980,1722785447338,-151.0,0.00013962,2]
[334119981,1722785447348,-184.733647,0.00013962,2]
[334119982,1722785447359,-151.0,0.00013962,2]
[334119983,1722785447369,-151.0,0.00013962,2]
[334119984,1722785447378,-151.0,0.00013962,2]
[334119985,1722785447388,-322.324888,0.00013962,2]
[334119986,1722785447398,-322.324888,0.00013962,2]
[334119987,1722785447408,-151.0,0.00013962,2]
[334119988,1722785447417,-151.0,0.00013962,2]
[334119989,1722785447428,-168.704533,0.00013962,2]
[334119990,1722785447437,-168.704533,0.00013962,2]
[334119991,1722785447449,-151.0,0.00013962,2]
[334119992,1722785447460,-289.156717,0.00013962,2]
[334119993,1722785447470,-266.002243,0.00013962,2]
[334119994,1722785447480,-266.002243,0.00013962,2]
[334119995,1722785447489,-43090.6141052,0.00013962,2]
[334119996,1722785447499,-3724.68,0.00013969,2]
[334119997,1722785447509,-1958.34858584,0.00013971,2]
[334119998,1722785447657,-1766.33141416,0.00013971,2]
[334119999,1722785447668,-3724.68,0.00013971,2]
[334120000,1722785447678,-3724.68,0.00013971,2]
[334120001,1722785447690,-500.0,0.00013972,2]
[334120002,1722785447702,-500.0,0.00013972,2]
[334120003,1722785447712,-500.0,0.00013972,2]
[334120004,1722785447723,-500.0,0.00013972,2]
[334120005,1722785447733,-500.0,0.00013972,2]
[334120006,1722785447743,-500.0,0.00013972,2]
[334120007,1722785447755,-500.0,0.00013972,2]
[334120008,1722785447767,-531.95,0.00013972,2]
[334120009,1722785447779,-500.0,0.00013972,2]
[334120010,1722785447789,-500.0,0.00013972,2]
[334120011,1722785447800,-500.0,0.00013972,2]
[334120012,1722785447811,-500.0,0.00013972,2]
[334120013,1722785447820,-500.0,0.00013972,2]
[334120014,1722785447833,-500.0,0.00013972,2]
[334120015,1722785447842,-500.0,0.00013972,2]
[334120016,1722785447852,-500.0,0.00013972,2]
[334120017,1722785447863,-479.66385215,0.00013972,2]
[334120018,1722785447878,-500.0,0.00013972,2]
[334120019,1722785447887,-500.0,0.00013972,2]
[334120020,1722785447897,-500.0,0.00013972,2]
[334120021,1722785447906,-319.21199734,0.00013972,2]
[334120022,1722785447918,-500.0,0.00013972,2]
[334120023,1722785447927,-500.0,0.00013972,2]
[334120024,1722785447936,-500.0,0.00013972,2]
[334120025,1722785447949,-500.0,0.00013972,2]
[334120026,1722785447959,-500.0,0.00013972,2]
[334120027,1722785447970,-500.0,0.00013972,2]
[334120028,1722785447981,-196.74508319,0.00013972,2]
[334120029,1722785447992,-500.0,0.00013972,2]
[334120030,1722785448002,-500.0,0.00013972,2]
[334120031,1722785448011,-447.64376257,0.00013972,2]
[334120032,1722785448021,-151.0,0.00013972,2]
[334120033,1722785448030,-253.126703,0.00013972,2]
[334120034,1722785448039,-425.174959,0.00013972,2]
[334120035,1722785448050,-425.174959,0.00013972,2]
[334120036,1722785448059,-500.0,0.00013972,2]
[334120037,1722785448070,-425.174959,0.00013972,2]
[334120038,1722785448084,-357.99302131,0.00013972,2]
[334120039,1722785448094,-425.174959,0.00013972,2]
[334120040,1722785448104,-500.0,0.00013972,2]
[334120041,1722785448113,-500.0,0.00013972,2]
[334120042,1722785448124,-500.0,0.00013972,2]
[334120043,1722785448134,-594.58462071,0.00013972,2]
[334120048,1722785448263,-500.0,0.00013972,2]
[334120049,1722785448273,-500.0,0.00013972,2]
[334120050,1722785448283,-500.0,0.00013972,2]
[334120051,1722785448293,-500.0,0.00013972,2]
[334120052,1722785448302,-500.0,0.00013972,2]
[334120053,1722785448313,-500.0,0.00013972,2]
[334120054,1722785448322,-292.53774457,0.00013972,2]
[334120056,1722785448334,-500.0,0.00013972,2]
[334120057,1722785448344,-500.0,0.00013972,2]
[334120058,1722785448353,-500.0,0.00013972,2]
[334120059,1722785448363,-579.62,0.00013972,2]
[334120060,1722785448373,-330.90170641,0.00013972,2]
[334120061,1722785448386,-169.09829359,0.00013972,2]
[334120062,1722785448396,-500.0,0.00013972,2]
[334120063,1722785448409,-246.90170641,0.00013972,2]
[334120064,1722785448422,-253.09829359,0.00013972,2]
[334120065,1722785448432,-500.0,0.00013972,2]
[334120066,1722785448442,-500.0,0.00013972,2]
[334120067,1722785448452,-151.0,0.00013972,2]
[334120068,1722785448464,-500.0,0.00013972,2]
[334120069,1722785448474,-500.0,0.00013972,2]
[334120070,1722785448483,-439.6017064,0.00013972,2]
[334120071,1722785448495,-60.3982936,0.00013972,2]
[334120072,1722785448504,-285.80624649,0.00013972,2]
[334120073,1722785448514,-500.0,0.00013972,2]
[334120074,1722785448523,-500.0,0.00013972,2]
[334120075,1722785448532,-0.21065798,0.00013972,2]
[334120086,1722785448729,-500.0,0.00013698,2]
[334120088,1722785448739,-19.94465513,0.00013698,2]
[334120090,1722785448752,-480.05534487,0.00013698,2]
[334120092,1722785448762,-207.64465513,0.00013972,2]
[334120094,1722785448775,-292.14468689,0.00013972,2]
[334120096,1722785448785,-500.0,0.00013972,2]
[334120098,1722785448800,-122.85531311,0.00013972,2]
[334120102,1722785448824,-129.10112611,0.00013972,2]
[334120104,1722785448837,-500.0,0.00013972,2]
[334120105,1722785448847,-500.0,0.00013972,2]
[334120107,1722785448857,-156.57566472,0.00013972,2]
[334120110,1722785448868,-500.0,0.00013972,2]
[334120111,1722785448882,-500.0,0.00013972,2]
[334120113,1722785448892,-500.0,0.00013972,2]
[334120115,1722785448902,-500.0,0.00013972,2]
[334120117,1722785448914,-998.58881386,0.00013972,2]
[334120118,1722785448927,-220.19118614,0.00013972,2]
[334120119,1722785448937,-151.0,0.00013972,2]
[334120121,1722785448946,-151.0,0.00013972,2]
[334120123,1722785448959,-500.0,0.00013972,2]
[334120125,1722785448969,-500.0,0.00013972,2]
[334120127,1722785448979,-500.0,0.00013972,2]
[334120128,1722785448989,-500.0,0.00013972,2]
[334120129,1722785448999,-500.0,0.00013972,2]
[334120130,1722785449009,-151.0,0.00013972,2]
[334120131,1722785449018,-151.0,0.00013972,2]
[334120132,1722785449028,-421.48837156,0.00013972,2]
[334120133,1722785449038,-319.22688472,0.00013972,2]
[334120134,1722785786786,1953.11733,0.00027397,120]
[334120135,1722786181022,161.346278,0.00029858,120]
[334120136,1722786193131,151.0,0.00029858,120]
[334120137,1722786390831,1464.837997,0.00027397,120]
[334120138,1722786429141,-1189.82657955,9.8e-05,2]
[334120140,1722786439394,-133.02584109,9.8e-05,2]
[334120141,1722786439423,-300.0,9.998e-05,2]
[334120142,1722786439446,-300.0,9.998e-05,2]
[334120143,1722786439469,-187.64611561,9.999e-05,2]
[334120144,1722786439491,-157.80579925,9.999e-05,2]
[334120145,1722786439519,-521.67506793,9.999e-05,2]
[334120146,1722786439541,-300.99621399,9.999e-05,2]
[334120147,1722786439565,-154.72922386,9.999e-05,2]
[334120148,1722786439589,-58.47657368,9.999e-05,2]
[334120149,1722786444160,-475.44670821,9.999e-05,2]
[334120150,1722786444183,-849.3304683,9.999e-05,2]
[334120151,1722786444205,-779.66389887,9.999e-05,2]